bitfinex/quotes_SOLUSD_20250415
["timestamp","ask_amount","ask_price","bid_price","bid_amount"]
[1744729272849,89.2444,130.82,130.77,36.13403392]
[1744729273154,22.5666,130.83,130.8,35.42322607]
[1744729273447,22.5666,130.83,130.78,35.42322607]
[1744729273448,54.07287493,130.82,130.78,35.42322607]
[1744729273937,35.42322607,130.82,130.78,35.42322607]
[1744729274340,26.29454886,130.81,130.77,35.84971078]
[1744729274647,81.6,130.81,130.78,35.42322607]
[1744729274863,81.6,130.81,130.8,35.42322607]
[1744729275155,41.21624886,130.83,130.79,35.42322607]
[1744729275455,76.63947493,130.83,130.79,35.42322607]
[1744729275745,41.21624886,130.83,130.79,35.42322607]
[1744729275922,41.21624886,130.83,130.8,35.42322607]
[1744729276351,41.21624886,130.83,130.79,35.84971078]
[1744729277324,41.21624886,130.83,130.8,35.42322607]
[1744729277649,81.6,130.82,130.8,0.28432314]
[1744729277833,81.6,130.82,130.81,43.49431078]
[1744729278034,81.6,130.82,130.81,35.84971078]
[1744729279629,81.6,130.82,130.81,43.77863392]
[1744729280346,81.6,130.82,130.81,36.13403392]
[1744729280655,81.6,130.81,130.8,35.42322607]
[1744729280852,81.6,130.81,130.8,35.84971078]
[1744729281737,81.6,130.81,130.78,0.28432314]
[1744729281943,81.6,130.81,130.79,35.42322607]
[1744729282158,81.6,130.81,130.8,35.42322607]
[1744729282354,81.6,130.81,130.8,35.99187235]
[1744729282539,81.6,130.81,130.8,36.13403392]
[1744729282739,81.6,130.81,130.8,35.84971078]
[1744729283037,81.6,130.81,130.8,0.42648471]
[1744729283245,81.6,130.81,130.8,35.84971078]
[1744729284061,7.7065,130.83,130.81,0.28432314]
[1744729284062,0.063,130.83,130.81,0.28432314]
[1744729284235,0.063,130.83,130.8,43.77923392]
[1744729284236,0.063,130.83,130.82,35.84971078]
[1744729284730,18.71264886,130.83,130.77,27.5577]
[1744729284935,18.64964886,130.81,130.77,35.42322607]
[1744729285137,54.07287493,130.81,130.77,35.70754921]
[1744729285437,81.6,130.8,130.75,35.70754921]
[1744729285637,54.07287493,130.78,130.74,0.28432314]
[1744729285837,81.6,130.77,130.74,0.42648471]
[1744729286044,81.6,130.76,130.73,35.48622607]
[1744729286252,89.2478,130.76,130.73,35.48622607]
[1744729286561,81.6,130.76,130.73,35.48622607]
[1744729286869,81.6,130.76,130.75,35.70754921]
[1744729287160,89.2476,130.76,130.73,35.48622607]
[1744729287337,81.6,130.76,130.73,35.48622607]
[1744729287746,81.6,130.76,130.74,35.42322607]
[1744729288263,81.6,130.76,130.75,35.42322607]
[1744729288554,81.6,130.76,130.75,35.84971078]
[1744729288759,89.2476,130.76,130.73,0.063]
[1744729288945,117.02322607,130.75,130.73,0.063]
[1744729289544,81.6,130.75,130.73,0.063]
[1744729289756,18.64964886,130.74,130.73,0.063]
[1744729289960,54.07287493,130.74,130.73,0.063]
[1744729290163,18.64964886,130.74,130.73,0.063]
[1744729290660,61.72157493,130.74,130.73,0.063]
[1744729291646,43.07132607,130.76,130.73,0.063]
[1744729291878,18.64964886,130.75,130.73,0.063]
[1744729292363,26.29814886,130.75,130.73,0.063]
[1744729292540,61.72137493,130.75,130.73,0.063]
[1744729293166,26.29814886,130.75,130.73,0.063]
[1744729293875,54.07287493,130.74,130.73,0.063]
[1744729294288,7.6475,130.76,130.73,0.063]
[1744729294571,18.64964886,130.75,130.73,0.063]
[1744729294743,14.8,130.76,130.74,35.42322607]
[1744729294943,96.4,130.76,130.75,35.42322607]
[1744729295148,96.4,130.76,130.75,35.84971078]
[1744729295558,96.4,130.76,130.73,26.20516157]
[1744729295761,35.42322607,130.74,130.73,0.063]
[1744729295982,54.07287493,130.74,130.73,0.063]
[1744729296475,61.72157493,130.74,130.73,0.063]
[1744729298285,18.64964886,130.7,130.67,0.063]
[1744729298586,81.6,130.69,130.67,0.063]
[1744729298875,81.6,130.69,130.67,35.48622607]
[1744729299287,81.6,130.69,130.67,0.063]
[1744729299659,81.6,130.69,130.67,35.48622607]
[1744729300058,81.6,130.69,130.67,0.063]
[1744729301065,89.2517,130.69,130.67,0.063]
[1744729301478,81.6,130.69,130.68,35.70754921]
[1744729301680,81.6,130.69,130.68,36.13403392]
[1744729301902,14.8,130.7,130.69,0.42648471]
[1744729302058,14.8,130.7,130.69,35.84971078]
[1744729302560,14.8,130.7,130.69,43.50131078]
[1744729302761,14.8,130.7,130.69,8.07808471]
[1744729302957,14.8,130.7,130.69,43.50131078]
[1744729304163,81.6,130.75,130.73,0.28432314]
[1744729304385,81.6,130.75,130.74,35.42322607]
[1744729305264,81.6,130.77,130.75,0.42648471]
[1744729305578,81.6,130.77,130.74,43.78273392]
[1744729305579,14.82,130.79,130.76,35.84971078]
[1744729305783,14.82,130.79,130.77,35.42322607]
[1744729305984,18.64964886,130.78,130.74,0.42648471]
[1744729306281,18.64964886,130.78,130.75,35.42322607]
[1744729306680,26.29654886,130.78,130.74,35.42322607]
[1744729306883,18.64964886,130.76,130.73,35.42322607]
[1744729307678,18.64964886,130.77,130.75,35.42322607]
[1744729308071,18.64964886,130.77,130.73,0.42648471]
[1744729308386,18.64964886,130.77,130.75,35.42322607]
[1744729308585,18.64964886,130.78,130.75,35.42322607]
[1744729308784,22.466,130.79,130.77,35.42322607]
[1744729308785,14.82,130.79,130.77,35.42322607]
[1744729309084,22.4659,130.79,130.76,35.42322607]
[1744729309499,18.64964886,130.78,130.75,35.42322607]
[1744729309698,100.24964886,130.78,130.75,35.42322607]
[1744729309905,81.6,130.78,130.77,35.42322607]
[1744729310069,81.6,130.78,130.77,36.13403392]
[1744729310689,81.6,130.78,130.77,43.78103392]
[1744729311484,81.6,130.82,130.78,0.71080785]
[1744729311678,81.6,130.82,130.81,36.13403392]
[1744729311876,14.863,130.83,130.81,35.84971078]
[1744729312076,0.063,130.83,130.82,36.13403392]
[1744729312381,0.063,130.83,130.82,35.84971078]
[1744729312771,0.063,130.83,130.82,43.77803392]
[1744729315193,0.063,130.83,130.82,35.84971078]
[1744729315498,0.063,130.83,130.82,35.70754921]
[1744729315676,81.6,130.82,130.8,61.42322607]
[1744729315870,81.6,130.82,130.79,0.28432314]
[1744729316090,81.6,130.82,130.78,35.42322607]
[1744729316296,81.6,130.81,130.78,35.42322607]
[1744729316495,81.6,130.81,130.79,35.42322607]
[1744729318189,81.6,130.8,130.78,0.14216157]
[1744729318396,81.6,130.8,130.78,35.56538764]
[1744729318598,81.6,130.79,130.77,26.28432314]
[1744729318784,81.6,130.79,130.77,61.70754921]
[1744729318983,81.6,130.79,130.78,35.84971078]
[1744729319285,81.6,130.79,130.78,43.49611078]
[1744729320296,81.6,130.79,130.78,35.84971078]
[1744729320481,81.6,130.79,130.78,43.78043392]
[1744729321404,81.6,130.79,130.78,43.49611078]
[1744729321576,81.6,130.79,130.78,43.78043392]
[1744729322283,7.7066,130.83,130.82,0.28432314]
[1744729322284,81.663,130.83,130.82,0.28432314]
[1744729322477,81.663,130.83,130.82,0.42648471]
[1744729322675,81.663,130.83,130.82,36.13403392]
[1744729322879,0.063,130.83,130.82,71.55725999]
[1744729323084,0.063,130.83,130.82,36.13403392]
[1744729323387,0.063,130.83,130.82,35.84971078]
[1744729323594,81.6,130.82,130.77,1.5919]
[1744729323797,81.6,130.81,130.78,35.42322607]
[1744729323992,81.6,130.8,130.78,35.42322607]
[1744729325806,81.6,130.8,130.79,36.13403392]
[1744729326104,81.663,130.83,130.8,0.28432314]
[1744729326278,81.663,130.83,130.81,35.42322607]
[1744729326481,124.72982607,130.83,130.78,35.70754921]
[1744729326792,81.663,130.83,130.8,35.42322607]
[1744729326998,81.663,130.83,130.81,35.42322607]
[1744729327185,117.08622607,130.83,130.79,61.56538764]
[1744729327496,81.663,130.83,130.79,69.21108764]
[1744729327896,124.72972607,130.83,130.79,61.42322607]
[1744729328299,89.3065,130.83,130.79,61.42322607]
[1744729328690,89.3065,130.83,130.79,69.06902607]
[1744729329304,81.663,130.83,130.8,0.71080785]
[1744729329481,81.663,130.83,130.82,36.13403392]
[1744729330293,80.90698642,130.83,130.82,35.84971078]
[1744729330607,80.90698642,130.83,130.82,61.84971078]
[1744729331390,80.90698642,130.83,130.8,35.42322607]
[1744729331594,80.90698642,130.83,130.79,35.42322607]
[1744729331798,80.90698642,130.83,130.8,35.42322607]
[1744729332198,80.90698642,130.83,130.82,35.70754921]
[1744729332394,80.90698642,130.83,130.82,35.84971078]
[1744729332705,80.90698642,130.82,130.81,35.42322607]
[1744729332909,80.90698642,130.82,130.81,35.84971078]
[1744729333114,80.90698642,130.82,130.81,0.42648471]
[1744729333414,80.90698642,130.82,130.81,35.84971078]
[1744729333597,80.90698642,130.82,130.81,0.42648471]
[1744729334699,80.90698642,130.82,130.81,35.84971078]
[1744729335099,80.90698642,130.82,130.79,61.42322607]
[1744729336707,80.90698642,130.82,130.79,69.06902607]
[1744729336928,80.90698642,130.82,130.79,61.42322607]
[1744729337105,80.90698642,130.82,130.8,35.42322607]
[1744729337516,80.90698642,130.82,130.81,35.42322607]
[1744729337898,80.90698642,130.82,130.81,35.84971078]
[1744729338410,80.90698642,130.82,130.81,43.06782607]
[1744729338614,80.90698642,130.82,130.81,43.49431078]
[1744729339202,80.90698642,130.82,130.81,43.77863392]
[1744729339711,0.063,130.84,130.83,26.28432314]
[1744729339906,0.063,130.84,130.83,61.70754921]
[1744729340102,0.063,130.84,130.83,105.20075999]
[1744729340419,0.063,130.88,130.84,1.71080785]
[1744729340715,0.063,130.88,130.87,62.13403392]
[1744729341211,0.063,130.88,130.87,36.13403392]
[1744729342090,0.063,130.88,130.87,43.77513392]
[1744729344513,0.063,130.89,130.88,0.71080785]
[1744729344810,0.063,130.89,130.88,97.55725999]
[1744729345015,0.063,130.89,130.88,62.13403392]
[1744729345691,0.063,130.89,130.88,61.70754921]
[1744729345891,0.063,130.89,130.88,0.28432314]
[1744729346097,0.063,130.89,130.88,0.42648471]
[1744729346494,0.063,130.89,130.86,0.14216157]
[1744729346811,0.063,130.89,130.87,0.28432314]
[1744729347116,0.063,130.89,130.87,35.70754921]
[1744729349014,0.063,130.89,130.83,35.42322607]
[1744729349015,116.33021249,130.88,130.83,35.42322607]
[1744729349205,35.42322607,130.85,130.81,0.28432314]
[1744729349402,80.90698642,130.84,130.81,36.13403392]
[1744729349604,80.90698642,130.84,130.81,35.70754921]
[1744729349804,80.90698642,130.84,130.81,0.28432314]
[1744729350396,123.97311249,130.84,130.79,35.42322607]
[1744729350598,54.07287493,130.82,130.75,7.93242314]
[1744729350821,80.90698642,130.81,130.78,35.84971078]
[1744729351618,80.90698642,130.81,130.79,35.42322607]
[1744729352211,134.97986135,130.8,130.74,1.5092]
[1744729352403,123.97651249,130.79,130.75,0.28432314]
[1744729352596,123.97651249,130.79,130.77,35.70754921]
[1744729352597,80.90698642,130.79,130.77,35.70754921]
[1744729352919,88.55178642,130.81,130.78,35.42322607]
[1744729353223,88.55178642,130.81,130.77,35.42322607]
[1744729354019,18.64964886,130.8,130.76,35.42322607]
[1744729354425,54.07287493,130.8,130.75,61.70754921]
[1744729354723,35.42322607,130.79,130.75,61.42322607]
[1744729354894,18.64964886,130.78,130.75,26.0]
[1744729355320,123.97501249,130.81,130.76,35.70754921]
[1744729355509,18.64964886,130.8,130.76,35.70754921]
[1744729355905,54.07287493,130.8,130.76,35.70754921]
[1744729356324,61.71857493,130.8,130.76,35.70754921]
[1744729356501,61.71857493,130.8,130.75,26.0]
[1744729356701,61.71857493,130.8,130.75,61.42322607]
[1744729357408,80.90698642,130.79,130.75,61.42322607]
[1744729358202,88.55298642,130.79,130.75,61.42322607]
[1744729358400,18.64964886,130.78,130.74,0.42648471]
[1744729358608,18.64964886,130.78,130.73,7.85436157]
[1744729358609,116.33021249,130.77,130.73,35.48622607]
[1744729358914,80.90698642,130.76,130.75,0.28432314]
[1744729359120,80.90698642,130.76,130.73,35.48622607]
[1744729359617,80.90698642,130.76,130.75,0.42648471]
[1744729359809,80.90698642,130.76,130.75,35.84971078]
[1744729360002,80.90698642,130.76,130.75,0.42648471]
[1744729360714,80.90698642,130.76,130.73,7.7123]
[1744729360715,80.90698642,130.76,130.73,26.063]
[1744729360918,80.90698642,130.76,130.73,61.48622607]
[1744729361103,88.55468642,130.76,130.73,61.48622607]
[1744729361420,88.55468642,130.76,130.73,35.48622607]
[1744729361626,80.90698642,130.76,130.73,35.48622607]
[1744729362010,80.90698642,130.75,130.73,35.48622607]
[1744729362220,80.90698642,130.74,130.73,0.48948471]
[1744729362407,80.90698642,130.74,130.73,35.91271078]
[1744729362906,80.90698642,130.74,130.73,0.48948471]
[1744729363317,80.90698642,130.74,130.73,35.91271078]
[1744729363706,80.90698642,130.74,130.73,43.84633392]
[1744729364415,80.90698642,130.74,130.73,43.56201078]
[1744729364614,80.90698642,130.74,130.73,43.84633392]
[1744729365310,80.90698642,130.74,130.73,36.19703392]
[1744729365822,80.90698642,130.74,130.73,35.91271078]
[1744729366004,80.90698642,130.74,130.73,0.48948471]
[1744729366820,7.6476,130.76,130.73,0.063]
[1744729366821,43.07082607,130.76,130.73,0.063]
[1744729367126,7.6476,130.76,130.73,0.063]
[1744729368029,35.42322607,130.78,130.73,35.91271078]
[1744729368319,81.6,130.77,130.76,35.42322607]
[1744729368501,18.64964886,130.79,130.76,35.42322607]
[1744729368703,35.42322607,130.81,130.77,35.42322607]
[1744729368704,7.6454,130.8,130.77,35.42322607]
[1744729368929,81.6,130.8,130.78,35.42322607]
[1744729369335,124.66852607,130.8,130.76,0.14216157]
[1744729369639,135.67287493,130.79,130.74,36.13403392]
[1744729369933,117.02322607,130.78,130.74,0.42648471]
[1744729370228,35.42322607,130.76,130.73,0.063]
[1744729370427,81.6,130.75,130.73,0.063]
[1744729370829,89.2465,130.78,130.75,0.28432314]
[1744729371135,89.2465,130.78,130.75,35.42322607]
[1744729371314,89.2465,130.78,130.74,36.13403392]
[1744729371710,89.2465,130.78,130.74,35.84971078]
[1744729372719,7.6475,130.76,130.73,0.063]
[1744729373120,43.07072607,130.76,130.73,0.063]
[1744729374136,7.6475,130.76,130.73,0.063]
[1744729374839,54.07287493,130.74,130.73,0.063]
[1744729375215,18.64964886,130.74,130.73,0.063]
[1744729375731,18.64964886,130.72,130.7,0.063]
[1744729375912,81.537,130.71,130.7,0.063]
[1744729376719,61.72337493,130.71,130.7,0.063]
[1744729376914,26.29984886,130.72,130.7,0.063]
[1744729377122,81.6,130.72,130.7,35.48622607]
[1744729377523,81.6,130.72,130.7,0.063]
[1744729377721,81.6,130.8,130.72,0.71080785]
[1744729377935,117.02322607,130.8,130.76,35.42322607]
[1744729378231,117.02322607,130.8,130.73,0.28432314]
[1744729378232,35.42322607,130.78,130.73,35.56538764]
[1744729378538,54.07287493,130.77,130.72,35.56538764]
[1744729378920,18.64964886,130.75,130.71,35.42322607]
[1744729379120,18.64964886,130.75,130.7,0.48948471]
[1744729379342,18.64964886,130.75,130.72,35.42322607]
[1744729380437,18.64964886,130.75,130.7,35.48622607]
[1744729380438,54.07287493,130.75,130.7,35.48622607]
[1744729380738,18.64964886,130.73,130.7,0.063]
[1744729381117,26.29894886,130.73,130.7,0.063]
[1744729381324,61.72217493,130.73,130.7,0.063]
[1744729381724,54.07287493,130.73,130.7,0.063]
[1744729382154,18.64964886,130.74,130.7,35.91271078]
[1744729383154,81.6,130.73,130.72,0.42648471]
[1744729383450,81.6,130.73,130.72,61.84971078]
[1744729383817,81.6,130.73,130.71,0.42648471]
[1744729384036,81.6,130.73,130.72,0.42648471]
[1744729384628,81.6,130.73,130.72,35.84971078]
[1744729385551,81.6,130.73,130.72,35.42322607]
[1744729385844,81.6,130.72,130.7,35.62838764]
[1744729386146,100.24964886,130.71,130.7,0.063]
[1744729386332,54.07287493,130.71,130.7,0.063]
[1744729386532,44.54962607,130.74,130.7,0.063]
[1744729386737,18.64964886,130.73,130.7,0.063]
[1744729387062,18.64964886,130.75,130.71,35.42322607]
[1744729387350,14.64,130.76,130.73,35.42322607]
[1744729387550,22.2876,130.76,130.72,35.70754921]
[1744729388052,18.64964886,130.75,130.72,35.42322607]
[1744729388454,18.64964886,130.75,130.71,7.79236157]
[1744729388649,18.64964886,130.75,130.73,35.42322607]
[1744729388848,18.64964886,130.75,130.72,35.42322607]
[1744729390654,61.72107493,130.75,130.7,35.48622607]
[1744729390860,18.64964886,130.73,130.7,0.063]
[1744729391056,26.29784886,130.75,130.7,35.48622607]
[1744729391241,61.72107493,130.75,130.7,35.48622607]
[1744729391442,18.64964886,130.73,130.7,35.48622607]
[1744729391644,18.64964886,130.71,130.7,0.063]
[1744729392166,18.64964886,130.74,130.7,0.063]
[1744729392342,26.30014886,130.71,130.7,0.063]
[1744729393451,61.72337493,130.71,130.7,0.063]
[1744729394365,81.13399807,130.71,130.67,0.063]
[1744729394534,54.07287493,130.68,130.67,0.063]
[1744729394951,58.22747495,130.68,130.67,0.063]
[1744729395745,18.64964886,130.67,130.65,0.03]
[1744729395950,54.07287493,130.66,130.65,0.03]
[1744729396459,61.72627493,130.66,130.65,0.03]
[1744729397068,26.30304886,130.66,130.65,0.03]
[1744729397276,18.64964886,130.66,130.65,0.03]
[1744729397574,18.64964886,130.69,130.65,35.45322607]
[1744729397740,18.64964886,130.69,130.66,35.42322607]
[1744729397944,81.6,130.68,130.66,0.42648471]
[1744729398243,81.6,130.72,130.69,0.14216157]
[1744729398447,81.6,130.72,130.69,35.42322607]
[1744729398448,81.6,130.71,130.69,35.42322607]
[1744729398966,96.24,130.75,130.71,0.42648471]
[1744729399260,14.64,130.75,130.74,35.42322607]
[1744729399467,89.2461,130.79,130.74,35.42322607]
[1744729399672,19.1116,130.82,130.78,35.42322607]
[1744729399673,81.6,130.82,130.78,35.42322607]
[1744729399840,81.6,130.82,130.8,35.42322607]
[1744729400044,45.97263234,130.83,130.81,35.42322607]
[1744729400045,38.32873234,130.83,130.81,35.42322607]
[1744729400450,38.32873234,130.83,130.77,0.14216157]
[1744729400451,7.6417,130.86,130.82,35.42322607]
[1744729400761,0.03,130.87,130.85,35.42322607]
[1744729400959,0.03,130.87,130.86,35.42322607]
[1744729401169,0.03,130.87,130.85,35.42322607]
[1744729401350,0.03,130.87,130.84,35.42322607]
[1744729401550,0.03,130.87,130.85,35.42322607]
[1744729401757,0.03,130.87,130.86,35.84971078]
[1744729402058,0.03,130.87,130.86,36.13403392]
[1744729402650,0.03,130.87,130.86,35.84971078]
[1744729403057,0.03,130.87,130.86,36.13403392]
[1744729404478,0.03,130.87,130.86,43.77573392]
[1744729405865,0.03,130.87,130.84,35.42322607]
[1744729406047,0.03,130.87,130.85,35.42322607]
[1744729406250,0.03,130.87,130.86,35.42322607]
[1744729406957,0.03,130.87,130.86,43.49141078]
[1744729407163,0.03,130.87,130.86,43.77573392]
[1744729408071,0.03,130.87,130.86,36.13403392]
[1744729408244,0.03,130.87,130.86,43.77573392]
[1744729409887,0.063,130.89,130.88,26.28432314]
[1744729410100,0.063,130.92,130.89,0.28432314]
[1744729410380,0.063,130.92,130.91,35.70754921]
[1744729410577,0.063,130.92,130.91,43.06202607]
[1744729410776,0.063,130.92,130.91,69.77283392]
[1744729411481,0.063,130.92,130.91,43.77283392]
[1744729414661,0.03,130.94,130.92,42.15913392]
[1744729414983,0.03,130.94,130.93,45.34823392]
[1744729415284,0.03,130.94,130.89,7.03207644]
[1744729415285,0.03,130.94,130.89,19.0999]
[1744729415482,0.03,130.94,130.92,26.0]
[1744729415664,35.45322607,130.94,130.9,26.28432314]
[1744729415881,0.03,130.94,130.91,35.42322607]
[1744729416081,0.03,130.94,130.9,61.84971078]
[1744729416289,0.03,130.94,130.9,61.70754921]
[1744729417084,81.6,130.93,130.9,26.0]
[1744729417683,81.6,130.92,130.9,26.0]
[1744729418573,117.02322607,130.92,130.87,43.06422607]
[1744729418897,81.6,130.91,130.87,26.0]
[1744729419201,35.42322607,130.89,130.85,0.28432314]
[1744729419394,81.6,130.88,130.85,61.70754921]
[1744729419577,81.6,130.88,130.85,35.70754921]
[1744729420111,81.6,130.88,130.85,61.70754921]
[1744729420584,81.6,130.88,130.85,26.0]
[1744729420776,124.66372607,130.88,130.85,26.0]
[1744729421174,35.42322607,130.86,130.83,0.063]
[1744729421484,18.64964886,130.85,130.83,0.063]
[1744729422599,117.02322607,130.87,130.83,0.063]
[1744729422773,18.64964886,130.86,130.83,0.063]
[1744729423099,81.6,130.87,130.85,35.70754921]
[1744729423282,81.6,130.91,130.87,0.42648471]
[1744729423484,252.86,130.93,130.9,61.42322607]
[1744729423687,14.56,130.93,130.91,35.42322607]
[1744729423996,14.56,130.93,130.9,35.42322607]
[1744729424695,14.56,130.93,130.89,7.6397]
[1744729424998,18.64964886,130.92,130.89,35.42322607]
[1744729425291,18.64964886,130.92,130.88,61.42322607]
[1744729425692,18.64964886,130.92,130.84,19.107]
[1744729425693,18.64964886,130.9,130.85,7.642]
[1744729425888,54.07287493,130.9,130.85,43.06522607]
[1744729426186,35.42322607,130.9,130.86,0.42648471]
[1744729426393,18.64964886,130.9,130.86,35.84971078]
[1744729426785,18.64964886,130.88,130.85,35.42322607]
[1744729427019,18.64964886,130.88,130.85,43.06542607]
[1744729427179,7.6398,130.9,130.87,35.42322607]
[1744729427180,18.64964886,130.9,130.87,35.42322607]
[1744729427589,81.6,130.91,130.89,35.42322607]
[1744729427789,81.6,130.9,130.89,35.42322607]
[1744729427996,81.6,130.9,130.88,35.84971078]
[1744729428193,81.6,130.9,130.88,26.0]
[1744729428496,81.6,130.9,130.88,61.42322607]
[1744729429198,81.6,130.9,130.88,69.06342607]
[1744729430099,81.6,130.9,130.88,26.0]
[1744729430480,81.6,130.9,130.88,33.6405]
[1744729430686,81.6,130.9,130.88,69.06372607]
[1744729430889,81.6,130.9,130.89,35.84971078]
[1744729431399,81.6,130.9,130.89,35.42322607]
[1744729431571,81.6,130.9,130.88,69.06352607]
[1744729431778,81.6,130.9,130.89,26.0]
[1744729431979,81.6,130.9,130.87,61.42322607]
[1744729432194,81.6,130.9,130.87,69.06432607]
[1744729432497,81.6,130.89,130.87,69.06422607]
[1744729433077,81.6,130.89,130.88,35.84971078]
[1744729433474,81.6,130.89,130.88,8.06698471]
[1744729434583,81.6,130.89,130.88,43.49021078]
[1744729434985,81.6,130.89,130.88,8.06698471]
[1744729436601,81.6,130.89,130.87,26.0]
[1744729436806,81.6,130.89,130.87,69.06412607]
[1744729437301,81.6,130.89,130.85,19.1046]
[1744729437302,81.6,130.88,130.85,7.6422]
[1744729437607,81.6,130.87,130.86,26.0]
[1744729438279,61.71227493,130.9,130.86,26.0]
[1744729438484,35.42322607,130.91,130.87,0.42648471]
[1744729438797,81.6,130.9,130.87,0.42648471]
[1744729438999,81.6,130.9,130.87,35.84971078]
[1744729439592,81.6,130.9,130.89,35.42322607]
[1744729439789,81.6,130.9,130.89,62.13403392]
[1744729441497,81.6,130.9,130.89,69.77403392]
[1744729442084,81.6,130.9,130.89,69.48971078]
[1744729442316,35.42322607,130.93,130.89,69.48971078]
[1744729442317,81.6,130.93,130.89,69.77403392]
[1744729442488,81.6,130.93,130.92,62.13403392]
[1744729442688,0.03,130.94,130.92,0.14216157]
[1744729442900,0.03,130.94,130.9,35.84971078]
[1744729443117,81.6,130.93,130.9,26.0]
[1744729443305,81.6,130.93,130.89,43.06322607]
[1744729443622,81.6,130.92,130.89,69.06322607]
[1744729444314,81.6,130.92,130.9,35.84971078]
[1744729444514,81.6,130.92,130.91,35.42322607]
[1744729444683,81.6,130.92,130.9,35.84971078]
[1744729445313,81.6,130.92,130.91,35.84971078]
[1744729445938,81.6,130.92,130.89,69.06292607]
[1744729446709,81.6,130.92,130.9,35.84971078]
[1744729446912,81.6,130.92,130.91,35.42322607]
[1744729447115,18.67964886,130.94,130.91,35.42322607]
[1744729447311,81.63,130.94,130.93,35.42322607]
[1744729447506,81.63,130.94,130.93,62.13403392]
[1744729447814,81.63,130.94,130.93,34.06408471]
[1744729448014,81.63,130.94,130.93,69.48731078]
[1744729449133,81.63,130.94,130.93,34.06408471]
[1744729449526,81.63,130.94,130.93,26.0]
[1744729450829,81.63,130.94,130.91,43.06172607]
[1744729451139,81.63,130.94,130.93,35.42322607]
[1744729451323,81.63,130.94,130.92,35.84971078]
[1744729451527,81.63,130.94,130.93,35.84971078]
[1744729451841,81.63,130.94,130.93,8.06408471]
[1744729452838,81.63,130.94,130.93,43.48731078]
[1744729453225,81.63,130.94,130.93,69.77163392]
[1744729453433,0.03,130.94,130.93,69.77163392]
[1744729458446,0.03,130.94,130.93,26.42648471]
[1744729458640,0.03,130.94,130.93,34.06408471]
[1744729459418,0.03,130.94,130.93,61.84971078]
[1744729459648,81.63,130.94,130.92,35.42322607]
[1744729459814,81.63,130.94,130.91,7.6385]
[1744729460018,81.6,130.93,130.9,7.92342314]
[1744729460223,81.6,130.92,130.9,26.28432314]
[1744729460443,81.6,130.92,130.9,33.92362314]
[1744729460647,81.6,130.92,130.9,26.28432314]
[1744729460946,81.6,130.92,130.84,7.6426]
[1744729460947,81.6,130.89,130.84,7.6426]
[1744729461242,81.6,130.89,130.83,7.7062]
[1744729461243,35.42322607,130.87,130.83,7.7062]
[1744729461448,35.42322607,130.87,130.83,33.7062]
[1744729461622,35.42322607,130.87,130.83,26.063]
[1744729461821,35.42322607,130.85,130.83,0.063]
[1744729462057,81.6,130.84,130.83,0.063]
[1744729462346,54.07287493,130.84,130.83,0.063]
[1744729462721,6.1038,130.87,130.83,0.063]
[1744729462921,35.42322607,130.87,130.83,0.20516157]
[1744729463145,35.42322607,130.87,130.84,35.56538764]
[1744729463146,81.6,130.87,130.84,35.56538764]
[1744729463330,81.6,130.87,130.85,35.70754921]
[1744729463744,81.6,130.87,130.85,0.28432314]
[1744729463926,81.6,130.87,130.85,35.70754921]
[1744729464579,54.07287493,130.89,130.84,26.42648471]
[1744729464580,81.6,130.89,130.88,26.0]
[1744729464922,117.02322607,130.89,130.85,69.06542607]
[1744729465129,81.6,130.88,130.85,69.06542607]
[1744729465329,81.6,130.88,130.85,26.0]
[1744729465549,117.02322607,130.88,130.85,26.0]
[1744729466437,18.64964886,130.87,130.85,26.0]
[1744729466643,81.6,130.88,130.85,26.0]
[1744729466948,81.6,130.88,130.85,69.06532607]
[1744729467156,81.6,130.88,130.85,26.0]
[1744729467449,81.6,130.88,130.85,69.06552607]